[Event "IX Iberoamericano Championship 2023"]
[Site "Panama City"]
[Date "2023.11.27"]
[Round "2.9"]
[White "Ortiz Verdezoto, Anahi"]
[Black "Soto Hernandez, Henry"]
[Result "1-0"]
[ECO "A53"]
[WhiteElo "2175"]
[BlackElo "2490"]
[Annotator "RC"]
[PlyCount "159"]
[EventDate "2023.11.27"]
[EventType "swiss"]
[EventCountry "PAN"]
[SourceTitle "playchess.com"]
[Source "ChessBase"]
[SourceQuality "1"]
[TimeControl "5400+30"]

1. d4 {[%emt 0:00:05]} Nf6 {[%emt 0:00:04]} 2. c4 {[%emt 0:00:38]} d6 {[%emt 0:00:03]} 3. Nc3 {[%emt 0:00:40]} e5 {[%emt 0:00:03]} 4. dxe5 {[%emt 0:03:21]} dxe5 {[%emt 0:00:05]} 5. Qxd8+ {[%emt 0:02:00]} Kxd8 {[%emt 0:00:06]} 6. Bg5 {[%emt 0:02:20]} Be6 {[%emt 0:00:11]} 7. O-O-O+ {[%emt 0:03:18]} Nbd7 {[%emt 0:00:06]} 8. Nf3 {[%emt 0:05:04]} Kc8 {[%emt 0:06:54]} 9. e3 {[%emt 0:04:11]} Ng4 {[%emt 0:04:03]} 10. Bh4 {[%emt 0:03:27]} f6 {[%emt 0:00:13]} 11. h3 {[%emt 0:08:03]} Nh6 {[%emt 0:00:08]} 12. g4 {[%emt 0:04:32]} Nf7 {[%emt 0:00:49]} 13. Nd2 {[%emt 0:08:02]} c6 {[%emt 0:06:04]} 14. Be2 {[%emt 0:02:14]} Nb6 {[%emt 0:15:21]} 15. a3 {[%emt 0:04:38]} a5 {[%emt 0:08:10]} 16. Bg3 {[%emt 0:03:15]} g6 {[%emt 0:08:10]} 17. Bh4 {[%emt 0:08:23]} Be7 {[%emt 0:06:25]} 18. Nce4 {[%emt 0:01:20]} Nd7 {[%emt 0:01:16]} 19. Rdf1 {[%emt 0:09:28]} Re8 {[%emt 0:01:14]} 20. Nc3 {[%emt 0:04:43]} Bf8 {[%emt 0:08:25]} 21. f4 {[%emt 0:04:28]} exf4 {[%emt 0:00:52]} 22. exf4 {[%emt 0:00:05]} f5 {[%emt 0:00:08]} 23. gxf5 {[%emt 0:05:33]} Bxf5 {[%emt 0:00:22]} 24. Bg4 {[%emt 0:00:06]} Nd6 {[%emt 0:00:24]} 25. Re1 {[%emt 0:00:26]} Kc7 {[%emt 0:00:41]} 26. Bf2 {[%emt 0:02:57]} b6 {[%emt 0:01:50]} 27. Bxf5 {[%emt 0:03:34]} Nxf5 {[%emt 0:00:24]} 28. Nde4 {[%emt 0:01:02]} Bh6 {[%emt 0:03:16]} 29. Kc2 {[%emt 0:03:24]} Bxf4 {[%emt 0:00:53]} 30. Rhf1 {[%emt 0:00:15]} Be5 {[%emt 0:02:20]} 31. Na4 {[%emt 0:01:42]} Re7 {[%emt 0:01:27]} 32. c5 {[%emt 0:02:38]} b5 {[%emt 0:00:27]} 33. Nb6 {[%emt 0:00:01]} Rae8 {[%emt 0:01:06]} 34. Nxd7 {[%emt 0:00:17]} Kxd7 {[%emt 0:00:04]} 35. Rd1+ {[%emt 0:00:40]} Kc7 {[%emt 0:00:07]} 36. Nc3 {[%emt 0:00:58]} Bg7 {[%emt 0:01:37]} 37. Bg1 {[%emt 0:00:37]} b4 {[%emt 0:00:33]} 38. axb4 {[%emt 0:00:24]} axb4 {[%emt 0:00:05]} 39. Na4 {[%emt 0:00:04]} Re2+ {[%emt 0:00:44]} 40. Kb3 {[%emt 0:00:26]} R8e4 {[%emt 0:01:44]} 41. Rd3 {[%emt 0:00:21]} Rg2 {[%emt 0:19:00]} 42. Rfd1 {[%emt 0:00:23]} Re7 {[%emt 0:00:06]} 43. Kxb4 {[%emt 0:00:57]} Bxb2 {[%emt 0:00:15]} 44. Nb6 {[%emt 0:00:55]} Bf6 {[%emt 0:01:00]} 45. Rd7+ {[%emt 0:00:24]} Rxd7 {[%emt 0:00:04]} 46. Rxd7+ {[%emt 0:00:04]} Kb8 {[%emt 0:00:04]} 47. Rxh7 {[%emt 0:01:01]} Ba1 {[%emt 0:03:09]} 48. Nd7+ {[%emt 0:00:21]} Kc8 {[%emt 0:00:01]} 49. Nb6+ {[%emt 0:00:09]} Kd8 {[%emt 0:00:09]} 50. Rd7+ {[%emt 0:00:01]} Ke8 {[%emt 0:00:12]} 51. Rd1 {[%emt 0:00:03]} Bg7 {[%emt 0:01:23]} 52. Nc4 {[%emt 0:01:08]} Ne7 {[%emt 0:02:38]} 53. Re1 {[%emt 0:01:20]} Kd8 {[%emt 0:00:32]} 54. Kb3 {[%emt 0:00:29]} Nd5 {[%emt 0:00:18]} 55. h4 {[%emt 0:00:31]} Rg3+ {[%emt 0:00:19]} 56. Ka4 {[%emt 0:00:29]} Rg4 {[%emt 0:00:10]} 57. Kb3 {[%emt 0:00:05]} Rxh4 {[%emt 0:01:12]} 58. Re6 {[%emt 0:00:03]} Rh3+ {[%emt 0:01:00]} 59. Ka4 {[%emt 0:00:03]} Rg3 {[%emt 0:00:18]} 60. Bh2 {[%emt 0:00:49]} Rg4 {[%emt 0:00:09]} 61. Kb3 {[%emt 0:00:15]} Ne7 {[%emt 0:01:09]} 62. Be5 {[%emt 0:00:38]} Bxe5 {[%emt 0:00:30]} 63. Nxe5 {[%emt 0:00:11]} Rf4 {[%emt 0:00:50]} 64. Rxe7 {[%emt 0:00:16]} Rf6 {[%emt 0:00:28]} 65. Rd7+ {[%emt 0:00:22]} Ke8 {[%emt 0:00:10]} 66. Rd6 {[%emt 0:00:50]} Rf5 {[%emt 0:00:25]} 67. Re6+ {[%emt 0:00:08]} Kd8 {[%emt 0:00:11]} 68. Kc4 {[%emt 0:00:34]} Rf4+ {[%emt 0:00:52]} 69. Kd3 {[%emt 0:00:10]} g5 {[%emt 0:00:27]} 70. Nxc6+ {[%emt 0:00:29]} Kd7 {[%emt 0:00:07]} 71. Rd6+ {[%emt 0:00:05]} Kc7 {[%emt 0:00:06]} 72. Nd4 {[%emt 0:00:04]} Rf1 {[%emt 0:00:11]} 73. Ne6+ {[%emt 0:00:32]} Kc8 {[%emt 0:00:16]} 74. Nxg5 {[%emt 0:00:15]} Kc7 {[%emt 0:00:52]} 75. Ne6+ {[%emt 0:00:08]} Kc8 {[%emt 0:00:04]} 76. Kc4 {[%emt 0:00:03]} Rb1 {[%emt 0:00:22]} 77. Kd5 {[%emt 0:00:33]} Ra1 {[%emt 0:00:06]} 78. Rd8+ {[%emt 0:00:17]} Kb7 {[%emt 0:00:04]} 79. c6+ {[%emt 0:00:15]} Ka7 {[%emt 0:00:05]} 80. c7 {[%emt 0:00:18]} 1-0

[Event "IX Iberoamericano Championship 2023"]
[Site "Panama City"]
[Date "2023.11.27"]
[Round "2.10"]
[White "Espinosa Veloz, Ermes"]
[Black "Arribas Robaina, Maritza"]
[Result "1-0"]
[ECO "C01"]
[WhiteElo "2478"]
[BlackElo "2174"]
[Annotator "RC"]
[PlyCount "43"]
[EventDate "2023.11.27"]
[EventType "swiss"]
[EventCountry "PAN"]
[SourceTitle "playchess.com"]
[Source "ChessBase"]
[SourceQuality "1"]
[TimeControl "5400+30"]

1. e4 {[%emt 0:03:48]} e6 {[%emt 0:00:03]} 2. d4 {[%emt 0:00:27]} d5 {[%emt 0:00:05]} 3. Nc3 {[%emt 0:00:06]} Bb4 {[%emt 0:00:12]} 4. exd5 {[%emt 0:00:18]} exd5 {[%emt 0:00:21]} 5. Qf3 {[%emt 0:00:11]} Nf6 {[%emt 0:03:21]} 6. Bg5 {[%emt 0:00:19]} Be6 {[%emt 0:01:49]} 7. Nge2 {[%emt 0:18:47]} Nbd7 {[%emt 0:01:47]} 8. a3 {[%emt 0:02:25]} Ba5 {[%emt 0:05:00]} 9. Nf4 {[%emt 0:02:07]} O-O {[%emt 0:09:19]} 10. b4 {[%emt 0:15:42]} Bb6 {[%emt 0:01:15]} 11. Ncxd5 {[%emt 0:01:54]} Bxd5 {[%emt 0:12:50]} 12. Nxd5 {[%emt 0:00:08]} Bxd4 {[%emt 0:01:43]} 13. O-O-O {[%emt 0:00:19]} c6 {[%emt 0:10:00]} 14. Nxf6+ {[%emt 0:03:58]} Bxf6 {[%emt 0:00:06]} 15. Bxf6 {[%emt 0:00:13]} Qxf6 {[%emt 0:00:46]} 16. Rxd7 {[%emt 0:06:13]} Qa1+ {[%emt 0:00:06]} 17. Kd2 {[%emt 0:00:04]} Rae8 {[%emt 0:00:37]} 18. Qd1 {[%emt 0:08:39]} Qxa3 {[%emt 0:00:44]} 19. Qb1 {[%emt 0:00:17]} a5 {[%emt 0:01:27]} 20. Bd3 {[%emt 0:03:34]} axb4 {[%emt 0:02:17]} 21. Qa1 {[%emt 0:00:21]} b5 {[%emt 0:01:50]} 22. Ra7 {[%emt 0:03:01]} 1-0

[Event "IX Iberoamericano Championship 2023"]
[Site "Panama City"]
[Date "2023.11.27"]
[Round "2.11"]
[White "Cabezas Solano, David Alejandro"]
[Black "Diaz Perez, Michel Alejandro"]
[Result "1-0"]
[ECO "E01"]
[WhiteElo "2171"]
[BlackElo "2459"]
[Annotator "RC"]
[PlyCount "119"]
[EventDate "2023.11.27"]
[EventType "swiss"]
[EventCountry "PAN"]
[SourceTitle "playchess.com"]
[Source "ChessBase"]
[SourceQuality "1"]
[TimeControl "5400+30"]

1. d4 {[%emt 0:01:02]} Nf6 {[%emt 0:00:04]} 2. Nf3 {[%emt 0:00:09]} e6 {[%emt 0:00:05]} 3. g3 {[%emt 0:00:36]} c5 {[%emt 0:00:07]} 4. Bg2 {[%emt 0:00:54]} cxd4 {[%emt 0:00:07]} 5. Nxd4 {[%emt 0:00:43]} d5 {[%emt 1:32:37]} 6. c4 {[%emt 0:01:03]} e5 {[%emt 0:00:00]} 7. Nf3 {[%emt 0:01:27]} d4 {[%emt 0:00:00]} 8. O-O {[%emt 0:03:20]} Nc6 {[%emt 0:00:00]} 9. e3 {[%emt 0:00:18]} Be7 {[%emt 0:00:00]} 10. exd4 {[%emt 0:00:41]} exd4 {[%emt 0:00:00]} 11. Bf4 {[%emt 0:01:57]} Be6 {[%emt 0:00:00]} 12. Nbd2 {[%emt 0:00:46]} O-O {[%emt 0:00:00]} 13. Re1 {[%emt 0:11:28]} Qd7 {[%emt 0:00:00]} 14. Ne5 {[%emt 0:04:05]} Nxe5 {[%emt 0:00:00]} 15. Bxe5 {[%emt 0:00:12]} Ng4 {[%emt 0:00:00]} 16. Nf3 {[%emt 0:04:47]} Nxe5 {[%emt 0:00:00]} 17. Nxe5 {[%emt 0:00:12]} Qd6 {[%emt 0:00:00]} 18. Rc1 {[%emt 0:06:23]} Rac8 {[%emt 0:00:00]} 19. Bxb7 {[%emt 0:11:38]} Rc5 {[%emt 0:00:00]} 20. Bd5 {[%emt 0:06:17]} Bxd5 {[%emt 0:00:00]} 21. cxd5 {[%emt 0:00:06]} Rxd5 {[%emt 0:00:00]} 22. Nd3 {[%emt 0:02:55]} Bf6 {[%emt 0:00:00]} 23. b4 {[%emt 0:04:03]} a5 {[%emt 0:00:00]} 24. a3 {[%emt 0:02:17]} axb4 {[%emt 0:00:00]} 25. axb4 {[%emt 0:00:02]} g6 {[%emt 0:00:00]} 26. Qf3 {[%emt 0:03:21]} Rf5 {[%emt 0:00:00]} 27. Qb7 {[%emt 0:06:40]} Kg7 {[%emt 0:00:00]} 28. Rc7 {[%emt 0:00:55]} Bd8 {[%emt 0:00:00]} 29. Rd7 {[%emt 0:08:30]} Qf6 {[%emt 0:00:00]} 30. f4 {[%emt 0:01:45]} Qb6 {[%emt 0:00:00]} 31. Qxb6 {[%emt 0:01:43]} Bxb6 {[%emt 0:00:00]} 32. Re6 {[%emt 0:01:41]} Rb8 {[%emt 0:03:41]} 33. Kg2 {[%emt 0:02:29]} Kf8 {[%emt 0:02:49]} 34. Red6 {[%emt 0:00:40]} Ke8 {[%emt 0:02:58]} 35. Ne5 {[%emt 0:04:08]} Rd8 {[%emt 0:01:27]} 36. Rxd8+ {[%emt 0:03:41]} Bxd8 {[%emt 0:00:02]} 37. Rxd4 {[%emt 0:01:26]} Rf6 {[%emt 0:02:49]} 38. b5 {[%emt 0:01:20]} Re6 {[%emt 0:00:27]} 39. Kf3 {[%emt 0:01:27]} Bb6 {[%emt 0:01:47]} 40. Rd5 {[%emt 0:01:39]} f6 {[%emt 0:00:23]} 41. Nc4 {[%emt 0:02:14]} Bc7 {[%emt 0:00:05]} 42. Rd3 {[%emt 0:00:00]} g5 {[%emt 0:00:41]} 43. f5 {[%emt 0:00:00]} g4+ {[%emt 0:00:28]} 44. Kf2 {[%emt 0:00:00]} Re4 {[%emt 0:01:00]} 45. Re3 {[%emt 0:00:04]} Rxe3 {[%emt 0:00:05]} 46. Kxe3 {[%emt 0:00:04]} Kd7 {[%emt 0:00:10]} 47. Kd4 {[%emt 0:01:04]} h5 {[%emt 0:00:02]} 48. Kd5 {[%emt 0:01:09]} h4 {[%emt 0:01:54]} 49. gxh4 {[%emt 0:00:47]} Bxh2 {[%emt 0:00:01]} 50. Ne3 {[%emt 0:00:24]} g3 {[%emt 0:00:01]} 51. h5 {[%emt 0:00:17]} Bg1 {[%emt 0:00:04]} 52. Ng2 {[%emt 0:00:06]} Ke7 {[%emt 0:00:08]} 53. Ke4 {[%emt 0:00:58]} Kf7 {[%emt 0:01:47]} 54. Kf3 {[%emt 0:00:34]} Bf2 {[%emt 0:00:09]} 55. Ne3 {[%emt 0:00:09]} Be1 {[%emt 0:00:19]} 56. b6 {[%emt 0:00:32]} Ba5 {[%emt 0:00:01]} 57. Nd5 {[%emt 0:00:20]} Bxb6 {[%emt 0:01:15]} 58. Nxb6 {[%emt 0:00:06]} Kg7 {[%emt 0:00:02]} 59. Kxg3 {[%emt 0:00:06]} Kh6 {[%emt 0:00:01]} 60. Kg4 {[%emt 0:00:07]} 1-0

[Event "IX Iberoamericano Championship 2023"]
[Site "Panama City"]
[Date "2023.11.27"]
[Round "2.12"]
[White "Matamoros Franco, Carlos S."]
[Black "Ramos Espinoza, Efren Andres"]
[Result "1-0"]
[ECO "A11"]
[WhiteElo "2455"]
[BlackElo "2170"]
[Annotator "RC"]
[PlyCount "61"]
[EventDate "2023.11.27"]
[EventType "swiss"]
[EventCountry "PAN"]
[SourceTitle "playchess.com"]
[Source "ChessBase"]
[SourceQuality "1"]
[TimeControl "5400+30"]

1. Nf3 {[%emt 0:00:03]} Nf6 {[%emt 0:04:28]} 2. c4 {[%emt 0:00:19]} c6 {[%emt 0:00:10]} 3. g3 {[%emt 0:00:12]} d5 {[%emt 0:00:58]} 4. Bg2 {[%emt 0:00:17]} dxc4 {[%emt 0:02:38]} 5. O-O {[%emt 0:00:47]} Nbd7 {[%emt 0:02:05]} 6. Qc2 {[%emt 0:01:39]} Nb6 {[%emt 0:00:18]} 7. Na3 {[%emt 0:01:11]} Be6 {[%emt 0:01:03]} 8. Ng5 {[%emt 0:08:57]} Bg4 {[%emt 0:02:27]} 9. Nxc4 {[%emt 0:00:07]} Bxe2 {[%emt 0:07:21]} 10. Ne5 {[%emt 0:00:06]} Qd4 {[%emt 0:04:35]} 11. Ngxf7 {[%emt 0:02:19]} Bxf1 {[%emt 0:03:05]} 12. Kxf1 {[%emt 0:08:43]} Rc8 {[%emt 0:15:57]} 13. Nf3 {[%emt 0:03:50]} Qd5 {[%emt 0:04:29]} 14. Nxh8 {[%emt 0:00:20]} Qg8 {[%emt 0:03:57]} 15. Ng5 {[%emt 0:22:44]} Qxh8 {[%emt 0:03:30]} 16. Bh3 {[%emt 0:00:10]} Ra8 {[%emt 0:11:56]} 17. Be6 {[%emt 0:07:41]} g6 {[%emt 0:30:03]} 18. a4 {[%emt 0:13:27]} Nbd5 {[%emt 0:00:00]} 19. a5 {[%emt 0:02:33]} a6 {[%emt 0:00:00]} 20. Qb3 {[%emt 0:00:13]} Rb8 {[%emt 0:00:00]} 21. d4 {[%emt 0:03:47]} h6 {[%emt 0:00:00]} 22. Nf7 {[%emt 0:00:44]} Qh7 {[%emt 0:00:00]} 23. Ne5 {[%emt 0:00:07]} g5 {[%emt 0:00:00]} 24. Bf7+ {[%emt 0:01:10]} Kd8 {[%emt 0:00:00]} 25. Bg6 {[%emt 0:05:44]} Qg7 {[%emt 0:00:00]} 26. Nxc6+ {[%emt 0:00:10]} Kc7 {[%emt 0:00:00]} 27. Ne5 {[%emt 0:16:40]} e6 {[%emt 0:00:00]} 28. Bf7 {[%emt 0:00:00]} Bd6 29. Bxe6 Nb4 {[%emt 0:02:00]} 30. Bd2 {[%emt 0:00:00]} Qe7 {[%emt 0:02:15]} 31. Rc1+ {[%emt 0:00:00]} 1-0

[Event "IX Iberoamericano Championship 2023"]
[Site "Panama City"]
[Date "2023.11.27"]
[Round "2.13"]
[White "Tapia Ostolaza, Alexei"]
[Black "De La Riva Aguado, Oscar"]
[Result "0-1"]
[ECO "A81"]
[WhiteElo "2166"]
[BlackElo "2437"]
[Annotator "RC"]
[PlyCount "78"]
[EventDate "2023.11.27"]
[EventType "swiss"]
[EventCountry "PAN"]
[SourceTitle "playchess.com"]
[Source "ChessBase"]
[SourceQuality "1"]
[TimeControl "5400+30"]

1. Nf3 {[%emt 0:13:05]} f5 {[%emt 0:00:40]} 2. b3 {[%emt 0:00:41]} d6 {[%emt 0:01:10]} 3. d4 {[%emt 0:00:24]} Nf6 {[%emt 0:00:18]} 4. Bb2 {[%emt 0:02:04]} g6 {[%emt 0:01:05]} 5. g3 {[%emt 0:00:43]} Bg7 {[%emt 0:00:35]} 6. Bg2 {[%emt 0:01:23]} O-O {[%emt 0:00:46]} 7. O-O {[%emt 0:03:55]} Qe8 {[%emt 0:02:27]} 8. Nbd2 {[%emt 0:04:32]} Nc6 {[%emt 0:01:55]} 9. Qe1 {[%emt 0:05:17]} e5 {[%emt 0:03:31]} 10. dxe5 {[%emt 0:02:09]} dxe5 {[%emt 0:02:57]} 11. e4 {[%emt 0:04:30]} f4 {[%emt 0:02:51]} 12. Nc4 {[%emt 0:08:24]} Nh5 {[%emt 0:07:32]} 13. h3 {[%emt 0:01:35]} b5 {[%emt 0:03:39]} 14. Na3 {[%emt 0:05:14]} a6 {[%emt 0:06:04]} 15. c4 {[%emt 0:06:19]} b4 {[%emt 0:00:24]} 16. Nc2 {[%emt 0:00:04]} Rb8 {[%emt 0:00:18]} 17. a3 {[%emt 0:00:42]} a5 {[%emt 0:00:16]} 18. axb4 {[%emt 0:00:50]} axb4 {[%emt 0:00:06]} 19. Ra4 {[%emt 0:02:09]} Qe7 {[%emt 0:15:59]} 20. Bc1 {[%emt 0:02:41]} g5 {[%emt 0:02:49]} 21. Bd2 {[%emt 0:07:35]} g4 {[%emt 0:01:54]} 22. hxg4 {[%emt 0:00:19]} Bxg4 {[%emt 0:00:08]} 23. Nxb4 {[%emt 0:00:55]} Nxb4 {[%emt 0:01:06]} 24. Rxb4 {[%emt 0:00:37]} Qe6 {[%emt 0:15:14]} 25. Nh2 {[%emt 0:07:27]} Rxb4 {[%emt 0:03:09]} 26. Bxb4 {[%emt 0:00:37]} f3 {[%emt 0:00:34]} 27. Bh1 {[%emt 0:01:41]} Rf6 {[%emt 0:00:21]} 28. Qd2 {[%emt 0:00:56]} Nf4 {[%emt 0:08:06]} 29. Bxf3 {[%emt 0:05:22]} Bxf3 {[%emt 0:00:39]} 30. Nxf3 {[%emt 0:00:04]} Qh3 {[%emt 0:01:08]} 31. Nh4 {[%emt 0:00:34]} h6 {[%emt 0:03:33]} 32. Be7 {[%emt 0:06:11]} Rg6 {[%emt 0:00:21]} 33. Qe3 {[%emt 0:00:25]} Bf8 {[%emt 0:06:07]} 34. Bxf8 {[%emt 0:02:58]} Qxh4 {[%emt 0:00:21]} 35. Bc5 {[%emt 0:01:04]} Nh3+ {[%emt 0:02:35]} 36. Kg2 {[%emt 0:00:14]} Nf4+ {[%emt 0:00:07]} 37. Kg1 {[%emt 0:00:10]} Qh3 {[%emt 0:02:44]} 38. Qf3 {[%emt 0:00:12]} Rg5 {[%emt 0:00:04]} 39. Re1 {[%emt 0:02:01]} Rh5 {[%emt 0:00:09]} 0-1

[Event "IX Iberoamericano Championship 2023"]
[Site "Panama City"]
[Date "2023.11.27"]
[Round "2.14"]
[White "Sanchez Alvarez, Roberto Carlos"]
[Black "Obregon Garcia, Roxangel"]
[Result "1-0"]
[ECO "D23"]
[WhiteElo "2437"]
[BlackElo "2138"]
[Annotator "RC"]
[PlyCount "81"]
[EventDate "2023.11.27"]
[EventType "swiss"]
[EventCountry "PAN"]
[SourceTitle "playchess.com"]
[Source "ChessBase"]
[SourceQuality "1"]
[TimeControl "5400+30"]

1. d4 {[%emt 0:12:16]} d5 {[%emt 0:00:05]} 2. c4 {[%emt 0:00:08]} c6 {[%emt 0:00:04]} 3. Nf3 {[%emt 0:00:07]} Nf6 {[%emt 0:00:04]} 4. Qb3 {[%emt 0:00:10]} dxc4 {[%emt 0:00:23]} 5. Qxc4 {[%emt 0:00:12]} Bf5 {[%emt 0:00:10]} 6. g3 {[%emt 0:00:15]} e6 {[%emt 0:00:06]} 7. Bg2 {[%emt 0:00:06]} Be7 {[%emt 0:00:21]} 8. O-O {[%emt 0:00:21]} O-O {[%emt 0:00:09]} 9. e3 {[%emt 0:01:44]} a5 {[%emt 0:02:13]} 10. Qe2 {[%emt 0:02:46]} a4 {[%emt 0:08:30]} 11. a3 {[%emt 0:02:58]} Qa5 {[%emt 0:02:35]} 12. Nc3 {[%emt 0:06:45]} Qa6 {[%emt 0:01:33]} 13. Qxa6 {[%emt 0:05:49]} Rxa6 {[%emt 0:00:05]} 14. Ne5 {[%emt 0:00:14]} Bc2 {[%emt 0:09:45]} 15. e4 {[%emt 0:02:59]} c5 {[%emt 0:34:04]} 16. d5 {[%emt 0:11:53]} b5 {[%emt 0:02:18]} 17. Nxb5 {[%emt 0:07:40]} Bxe4 {[%emt 0:00:43]} 18. Bxe4 {[%emt 0:07:58]} Nxe4 {[%emt 0:00:22]} 19. Re1 {[%emt 0:00:08]} exd5 {[%emt 0:13:16]} 20. Nc7 {[%emt 0:00:15]} Rd6 {[%emt 0:01:02]} 21. Bf4 {[%emt 0:07:41]} Ng5 {[%emt 0:10:53]} 22. Kf1 {[%emt 0:13:05]} Nh3 {[%emt 0:09:54]} 23. Bc1 {[%emt 0:02:17]} Bd8 {[%emt 0:02:08]} 24. Nb5 {[%emt 0:00:47]} Rf6 {[%emt 0:01:02]} 25. f4 {[%emt 0:00:38]} Ng5 {[%emt 0:00:32]} 26. Nc3 {[%emt 0:02:41]} d4 {[%emt 0:00:19]} 27. Nxa4 {[%emt 0:00:18]} Ba5 {[%emt 0:00:33]} 28. b4 {[%emt 0:03:09]} cxb4 {[%emt 0:00:06]} 29. Bd2 {[%emt 0:00:08]} Ne6 {[%emt 0:01:03]} 30. Rac1 {[%emt 0:00:47]} Rd8 {[%emt 0:00:39]} 31. axb4 {[%emt 0:01:07]} Bc7 {[%emt 0:00:02]} 32. Ng4 {[%emt 0:00:53]} Rf5 {[%emt 0:00:07]} 33. Rxe6 {[%emt 0:00:22]} Bxf4 {[%emt 0:00:44]} 34. gxf4 {[%emt 0:01:25]} fxe6 {[%emt 0:00:03]} 35. Nc5 {[%emt 0:00:08]} Re8 {[%emt 0:00:43]} 36. Ke2 {[%emt 0:05:17]} h6 {[%emt 0:01:21]} 37. Kd3 {[%emt 0:00:40]} Rd5 {[%emt 0:00:32]} 38. Ne5 {[%emt 0:00:31]} g5 {[%emt 0:00:27]} 39. Ke4 {[%emt 0:00:32]} Rdd8 {[%emt 0:00:30]} 40. fxg5 {[%emt 0:00:20]} hxg5 {[%emt 0:00:32]} 41. Bxg5 {[%emt 0:03:30]} 1-0

[Event "IX Iberoamericano Championship 2023"]
[Site "Panama City"]
[Date "2023.11.27"]
[Round "2.15"]
[White "Ulloa, Ruben Abraham"]
[Black "Flores Quillas, Diego Saul Rodri"]
[Result "0-1"]
[ECO "A47"]
[WhiteElo "2150"]
[BlackElo "2414"]
[Annotator "RC"]
[PlyCount "182"]
[EventDate "2023.11.27"]
[EventType "swiss"]
[EventCountry "PAN"]
[SourceTitle "playchess.com"]
[Source "ChessBase"]
[SourceQuality "1"]
[TimeControl "5400+30"]

1. d4 {[%emt 0:06:58]} Nf6 {[%emt 0:09:40]} 2. Nf3 {[%emt 0:01:00]} e6 {[%emt 0:00:06]} 3. e3 {[%emt 0:00:58]} c5 {[%emt 0:00:20]} 4. Bd3 {[%emt 0:00:25]} b6 {[%emt 0:00:09]} 5. O-O {[%emt 0:00:30]} Bb7 {[%emt 0:00:04]} 6. Nbd2 {[%emt 0:00:54]} Be7 {[%emt 0:03:28]} 7. dxc5 {[%emt 0:02:04]} bxc5 {[%emt 0:00:29]} 8. e4 {[%emt 0:00:08]} d6 {[%emt 0:06:36]} 9. Re1 {[%emt 0:02:19]} Nc6 {[%emt 0:00:27]} 10. c3 {[%emt 0:08:27]} O-O {[%emt 0:00:32]} 11. Nf1 {[%emt 0:03:38]} Rb8 {[%emt 0:02:35]} 12. Ng3 {[%emt 0:00:49]} Ba8 {[%emt 0:00:37]} 13. Qe2 {[%emt 0:03:12]} Nd7 {[%emt 0:03:41]} 14. Bf4 {[%emt 0:02:41]} Qb6 {[%emt 0:04:58]} 15. Rab1 {[%emt 0:03:46]} Rfd8 {[%emt 0:00:30]} 16. Bg5 {[%emt 0:01:07]} Bxg5 {[%emt 0:07:18]} 17. Nxg5 {[%emt 0:00:06]} Nce5 {[%emt 0:00:08]} 18. Bc2 {[%emt 0:02:30]} c4 {[%emt 0:04:51]} 19. b4 {[%emt 0:00:24]} cxb3 {[%emt 0:01:47]} 20. axb3 {[%emt 0:02:52]} Rbc8 {[%emt 0:03:00]} 21. c4 {[%emt 0:00:53]} a5 {[%emt 0:00:26]} 22. Kh1 {[%emt 0:00:39]} h6 {[%emt 0:00:38]} 23. Nh3 {[%emt 0:00:10]} Nc6 {[%emt 0:01:16]} 24. f4 {[%emt 0:12:46]} Nd4 {[%emt 0:01:04]} 25. Qf2 {[%emt 0:00:02]} Qc5 {[%emt 0:01:05]} 26. Rbd1 {[%emt 0:04:00]} e5 {[%emt 0:00:22]} 27. fxe5 {[%emt 0:04:14]} dxe5 {[%emt 0:00:05]} 28. Nf5 {[%emt 0:00:27]} Nxf5 {[%emt 0:07:24]} 29. Qxf5 {[%emt 0:00:08]} Nf8 {[%emt 0:04:07]} 30. Rf1 {[%emt 0:02:23]} Qc7 {[%emt 0:00:25]} 31. Nf2 {[%emt 0:02:40]} Ne6 {[%emt 0:02:12]} 32. Ng4 {[%emt 0:00:25]} Nd4 {[%emt 0:01:15]} 33. Qf2 {[%emt 0:00:53]} Rb8 {[%emt 0:02:36]} 34. Rb1 {[%emt 0:02:38]} Rb6 {[%emt 0:08:22]} 35. Ne3 {[%emt 0:01:20]} Nxc2 {[%emt 0:02:39]} 36. Qxc2 {[%emt 0:00:44]} Rd4 {[%emt 0:00:08]} 37. Qa2 {[%emt 0:04:44]} Bxe4 {[%emt 0:02:01]} 38. Rb2 {[%emt 0:01:12]} Rg6 {[%emt 0:03:42]} 39. Rbf2 {[%emt 0:01:19]} Rd3 {[%emt 0:02:19]} 40. Qe2 {[%emt 0:02:00]} Qb7 {[%emt 0:03:47]} 41. Nd5 {[%emt 0:01:05]} Bxd5 {[%emt 0:01:22]} 42. cxd5 {[%emt 0:00:09]} Qxd5 {[%emt 0:00:04]} 43. Rxf7 {[%emt 0:01:49]} Rd2 {[%emt 0:00:40]} 44. Qf3 {[%emt 0:00:49]} Qxf3 {[%emt 0:01:02]} 45. R7xf3 {[%emt 0:00:11]} Rgxg2 {[%emt 0:00:04]} 46. Rh3 {[%emt 0:00:42]} Rge2 {[%emt 0:00:05]} 47. Rg1 {[%emt 0:00:22]} Kh7 {[%emt 0:00:17]} 48. Rc1 {[%emt 0:00:43]} e4 {[%emt 0:00:09]} 49. Kg1 {[%emt 0:00:28]} Rd3 {[%emt 0:01:02]} 50. Rh5 {[%emt 0:00:15]} Rxb3 {[%emt 0:00:21]} 51. Rxa5 {[%emt 0:00:05]} Rh3 {[%emt 0:00:04]} 52. Rc4 {[%emt 0:00:49]} Rhxh2 {[%emt 0:00:22]} 53. Rxe4 {[%emt 0:00:08]} Rxe4 {[%emt 0:00:46]} 54. Kxh2 {[%emt 0:00:14]} g5 {[%emt 0:00:10]} 55. Ra6 {[%emt 0:00:14]} Rf4 {[%emt 0:00:06]} 56. Kh3 {[%emt 0:00:18]} Kg7 {[%emt 0:00:02]} 57. Kg3 {[%emt 0:00:08]} Rf6 {[%emt 0:00:08]} 58. Ra8 {[%emt 0:00:06]} h5 {[%emt 0:01:10]} 59. Ra7+ {[%emt 0:00:27]} Kg6 {[%emt 0:00:04]} 60. Ra8 {[%emt 0:00:03]} h4+ {[%emt 0:00:23]} 61. Kg4 {[%emt 0:00:18]} Rf4+ {[%emt 0:00:05]} 62. Kh3 {[%emt 0:00:15]} Rf3+ {[%emt 0:00:03]} 63. Kg2 {[%emt 0:00:16]} Rb3 {[%emt 0:00:14]} 64. Ra5 {[%emt 0:00:32]} Kh5 {[%emt 0:00:39]} 65. Ra4 {[%emt 0:00:15]} Rb5 {[%emt 0:00:47]} 66. Rc4 {[%emt 0:00:09]} Rf5 {[%emt 0:00:05]} 67. Ra4 {[%emt 0:00:26]} g4 {[%emt 0:00:12]} 68. Ra8 {[%emt 0:00:06]} h3+ {[%emt 0:00:10]} 69. Kg3 {[%emt 0:00:14]} Rf3+ {[%emt 0:00:04]} 70. Kh2 {[%emt 0:00:08]} Kg5 {[%emt 0:17:41]} 71. Rg8+ {[%emt 0:00:30]} Kf4 {[%emt 0:00:00]} 72. Rf8+ {[%emt 0:00:06]} Ke3 {[%emt 0:00:00]} 73. Ra8 {[%emt 0:00:14]} Rf2+ {[%emt 0:00:00]} 74. Kg1 {[%emt 0:00:33]} g3 {[%emt 0:00:00]} 75. Re8+ {[%emt 0:01:12]} Kd2 {[%emt 0:00:00]} 76. Rd8+ {[%emt 0:00:12]} Kc3 {[%emt 0:00:00]} 77. Rc8+ {[%emt 0:00:13]} Kd4 {[%emt 0:00:00]} 78. Rd8+ {[%emt 0:00:13]} Ke5 {[%emt 0:00:00]} 79. Re8+ {[%emt 0:00:13]} Kd6 {[%emt 0:00:00]} 80. Rd8+ {[%emt 0:00:21]} Ke7 {[%emt 0:00:00]} 81. Rd1 {[%emt 0:00:08]} Re2 {[%emt 0:00:00]} 82. Ra1 {[%emt 0:00:10]} Ke6 {[%emt 0:00:00]} 83. Ra6+ {[%emt 0:00:33]} Ke5 {[%emt 0:00:00]} 84. Ra5+ {[%emt 0:00:22]} Ke4 {[%emt 0:00:00]} 85. Ra4+ {[%emt 0:00:34]} Kf3 {[%emt 0:00:00]} 86. Ra3+ {[%emt 0:00:10]} Re3 {[%emt 0:00:00]} 87. Ra1 {[%emt 0:00:03]} g2 {[%emt 0:00:00]} 88. Kh2 {[%emt 0:01:17]} Kf2 {[%emt 0:00:00]} 89. Ra2+ {[%emt 0:00:18]} Re2 {[%emt 0:00:00]} 90. Ra1 {[%emt 0:00:05]} Re1 {[%emt 0:00:00]} 91. Ra2+ {[%emt 0:00:06]} Kf1 {[%emt 0:00:00]} 0-1